bitfinex/quotes_ETHUSD_20230117
["timestamp","ask_amount","ask_price","bid_price","bid_amount"]
[1673948210233,36.83229267,1565.5,1565.4,0.11555387]
[1673948210448,35.88210412,1565.5,1565.4,0.11555387]
[1673948211084,36.83137716,1565.5,1565.4,0.11555387]
[1673948211292,39.38210412,1565.5,1565.4,0.11555387]
[1673948211736,41.55041975,1565.5,1565.4,0.11555387]
[1673948212192,40.60110412,1565.5,1565.4,0.11555387]
[1673948212797,43.60110412,1565.5,1565.4,0.11555387]
[1673948213148,44.55011295,1565.5,1565.4,0.11555387]
[1673948213934,44.54803008,1565.5,1565.4,0.11555387]
[1673948214641,39.62191966,1565.5,1565.4,0.11555387]
[1673948214928,38.42541454,1565.5,1565.4,0.11555387]
[1673948215785,35.74941454,1565.5,1565.4,0.11555387]
[1673948215986,35.27011454,1565.5,1565.4,0.11555387]
[1673948216288,35.74941454,1565.5,1565.4,0.11555387]
[1673948216978,35.97941454,1565.5,1565.4,0.11555387]
[1673948218549,26.82641454,1565.5,1564.9,7.91169747]
[1673948218918,26.82641454,1565.5,1565.0,0.79116975]
[1673948218919,3.11662407,1565.4,1565.0,0.79116975]
[1673948219244,6.3886,1565.3,1565.0,0.79116975]
[1673948219445,6.4546,1565.3,1565.0,0.79116975]
[1673948219766,6.4546,1565.3,1565.0,2.01816975]
[1673948219954,0.23,1565.2,1565.0,2.01816975]
[1673948220715,0.66851728,1565.2,1565.0,2.01816975]
[1673948221763,0.66851728,1565.2,1564.9,7.91169747]
[1673948221764,16.56305135,1565.2,1564.9,7.91169747]
[1673948221968,16.62905135,1565.2,1564.9,1.293]
[1673948222122,16.62905135,1565.2,1564.9,1.227]
[1673948224300,15.89566407,1565.1,1564.8,19.06148089]
[1673948224452,0.23,1565.0,1564.8,19.06148089]
[1673948224931,0.23,1565.0,1564.8,20.90259788]
[1673948225083,0.232,1565.0,1564.8,3.27349788]
[1673948225292,0.23,1565.0,1564.8,1.36838089]
[1673948225562,0.45725926,1564.9,1564.8,4.36838089]
[1673948225929,0.45725926,1564.9,1564.8,1.36838089]
[1673948237453,0.45725926,1564.9,1564.8,2.95379988]
[1673948237603,0.45725926,1564.9,1564.8,5.95379988]
[1673948237816,0.45725926,1564.9,1564.8,6.01979988]
[1673948243700,0.45725926,1564.9,1564.8,6.97566984]
[1673948244176,0.45725926,1564.9,1564.8,6.01979988]
[1673948244390,0.45725926,1564.9,1564.8,6.97566984]
[1673948244717,0.45725926,1564.9,1564.8,5.74866984]
[1673948245072,0.45725926,1564.9,1564.8,4.79279988]
[1673948245277,0.45725926,1564.9,1564.8,4.72679988]
[1673948245912,0.45725926,1564.9,1564.8,5.68266984]
[1673948246159,0.45725926,1564.9,1564.8,5.74866984]
[1673948246711,6.84743926,1564.9,1564.8,1.79279988]
[1673948246881,7.14343926,1564.9,1564.8,1.72679988]
[1673948249059,8.14343926,1564.9,1564.8,1.72679988]
[1673948249274,9.59166707,1564.9,1564.8,1.72679988]
[1673948249595,8.59166707,1564.9,1564.8,0.14138089]
[1673948251955,8.59166707,1564.9,1564.8,1.72689302]
[1673948252163,7.14343926,1564.9,1564.8,0.14138089]
[1673948253298,8.09244809,1564.9,1564.8,0.14138089]
[1673948253521,7.14343926,1564.9,1564.8,0.14138089]
[1673948255172,7.14343926,1564.9,1564.8,1.72686912]
[1673948258806,0.75325926,1564.9,1564.8,1.72686912]
[1673948258959,0.45725926,1564.9,1564.8,2.95101299]
[1673948259164,0.45725926,1564.9,1564.8,1.36552476]
[1673948259535,0.45725926,1564.9,1564.8,2.95101299]
[1673948260529,7.85927848,1565.1,1564.8,2.95101299]
[1673948260739,7.85927848,1565.1,1564.9,1.58548823]
[1673948261007,0.23,1565.0,1564.9,1.58548823]
[1673948262567,0.6850435,1565.0,1564.9,1.58548823]
[1673948264134,0.6850435,1565.0,1564.8,0.4096548]
[1673948264672,0.6850435,1565.0,1564.8,1.36552476]
[1673948264883,0.6850435,1565.0,1564.8,2.95095533]
[1673948265039,0.6850435,1565.0,1564.8,1.36552476]
[1673948265671,0.6850435,1565.0,1564.9,1.5854287]
[1673948271234,0.4550435,1565.0,1564.9,2.93639401]
[1673948271448,0.45205247,1565.0,1564.9,6.81071796]
[1673948271658,0.45205247,1565.0,1564.9,9.87671796]
[1673948271920,0.45205247,1565.0,1564.9,21.69952904]
[1673948272079,0.45205247,1565.0,1564.9,23.59749505]
[1673948272283,0.45205247,1565.0,1564.9,22.16685006]
[1673948272548,0.42822731,1565.3,1564.9,23.60271369]
[1673948272714,0.42822731,1565.3,1565.2,1.219]
[1673948274314,0.42822731,1565.3,1565.2,2.446]
[1673948274530,0.42822731,1565.3,1565.2,14.64399933]
[1673948274728,0.42822731,1565.3,1565.2,14.70999933]
[1673948275468,1.36514266,1565.5,1565.2,14.70999933]
[1673948275688,0.41613383,1565.5,1565.4,2.442]
[1673948277991,0.41613383,1565.5,1565.4,11.83014]
[1673948278207,0.41613383,1565.5,1565.4,11.89614]
[1673948279609,1.42236839,1565.7,1565.4,11.89614]
[1673948279831,1.42236839,1565.7,1565.6,1.227]
[1673948281501,0.47335956,1565.7,1565.6,1.227]
[1673948281867,0.47335956,1565.7,1565.4,4.289]
[1673948281868,8.03927839,1565.7,1565.4,4.289]
[1673948282222,14.49218839,1565.7,1565.4,4.223]
[1673948282391,19.89288719,1565.7,1565.4,4.223]
[1673948282603,6.61742,1565.6,1565.4,4.223]
[1673948282863,6.68342,1565.6,1565.4,4.223]
[1673948283464,0.41785791,1565.5,1565.4,4.223]
[1673948284499,16.30994198,1565.5,1565.3,0.066]
[1673948284705,6.61823,1565.4,1565.2,1.224]
[1673948284916,6.68423,1565.4,1565.2,1.224]
[1673948285812,9.80085407,1565.4,1565.1,4.293]
[1673948285974,16.18908407,1565.4,1565.1,4.227]
[1673948286191,1.61890841,1565.3,1565.1,4.227]
[1673948286420,8.00766841,1565.3,1565.1,4.227]
[1673948286597,8.07366841,1565.3,1565.1,4.227]
[1673948287262,14.46242841,1565.3,1565.1,3.0]
[1673948287475,14.46242841,1565.3,1565.0,3.066]
[1673948287644,0.41467582,1565.2,1565.0,3.0]
[1673948288541,0.41467582,1565.2,1565.0,4.40245]
[1673948289678,0.41467582,1565.2,1565.0,5.62945]
[1673948290016,0.41467582,1565.2,1565.0,5.69545]
[1673948290756,16.30924989,1565.2,1565.0,3.066]
[1673948290908,0.23,1565.1,1564.9,4.293]
[1673948291118,6.61946,1565.1,1564.9,4.227]
[1673948291334,6.68546,1565.1,1564.9,4.227]
[1673948291546,0.48026208,1565.1,1564.9,4.227]
[1673948291757,0.41426208,1565.1,1564.9,4.89303809]
[1673948293248,0.41426208,1565.1,1564.9,4.88974536]
[1673948295608,14.66945828,1565.3,1565.0,2.80018385]
[1673948295781,14.66945828,1565.3,1565.0,1.215]
[1673948295782,6.86865828,1565.3,1565.0,1.215]
[1673948295990,7.34805828,1565.3,1565.0,1.215]
[1673948298756,17.15644525,1565.3,1564.9,4.284]
[1673948298970,17.15644525,1565.3,1564.9,4.218]
[1673948298971,16.20743642,1565.3,1564.9,4.218]
[1673948299764,16.20743642,1565.3,1564.9,3.0]
[1673948300036,16.20743642,1565.3,1564.8,5.39061819]
[1673948300196,16.20743642,1565.3,1564.9,1.58528025]
[1673948300387,17.15644525,1565.3,1564.9,1.58528025]
[1673948300603,17.15644525,1565.3,1564.9,4.58528025]
[1673948300814,17.15644525,1565.3,1564.9,3.0]
[1673948301035,17.15644525,1565.3,1564.8,5.39061819]
[1673948301244,17.15644525,1565.3,1564.9,1.58529923]
[1673948301674,17.15644525,1565.3,1564.9,4.58529923]
[1673948301886,17.15644525,1565.3,1564.9,3.0]
[1673948303662,17.15644525,1565.3,1564.8,5.39061819]
[1673948303879,17.15644525,1565.3,1564.9,1.58529748]
[1673948304081,1.71564453,1565.2,1564.9,1.58529748]
[1673948304288,17.15644525,1565.3,1564.9,4.58529748]
[1673948304498,0.41467582,1565.2,1564.9,3.0]
[1673948304703,0.41467582,1565.2,1564.8,5.39061819]
[1673948304948,0.41467582,1565.2,1564.9,1.5853031]
[1673948305160,0.41467582,1565.2,1564.9,4.5853031]
[1673948305375,6.80365582,1565.2,1564.9,3.0]
[1673948305545,0.48067582,1565.2,1564.9,3.99759213]
[1673948305779,0.41467582,1565.2,1565.0,1.5852169]
[1673948306822,0.41467582,1565.2,1565.0,2.5852169]
[1673948307063,0.41467582,1565.2,1565.0,1.0]
[1673948307232,0.41467582,1565.2,1565.1,0.933]
[1673948307688,16.64614091,1565.4,1565.1,2.51812836]
[1673948307861,15.69713208,1565.4,1565.1,0.933]
[1673948308294,16.64614091,1565.4,1565.1,0.933]
[1673948308841,16.16684091,1565.4,1565.1,0.933]
[1673948309694,9.77857091,1565.4,1565.1,0.933]
[1673948309856,8.82956208,1565.4,1565.2,0.0933]
[1673948310068,0.48026208,1565.4,1565.2,0.0933]
[1673948310282,0.41426208,1565.4,1565.2,0.0933]
[1673948310534,0.41426208,1565.4,1565.2,1.0933]
[1673948310716,0.41426208,1565.4,1565.2,4.0933]
[1673948310930,0.41426208,1565.4,1565.3,0.40933]
[1673948311121,10.53691925,1565.6,1565.3,18.18261179]
[1673948311122,0.066,1565.6,1565.3,18.18261179]
[1673948311332,0.05639851,1565.7,1565.4,6.54218179]
[1673948311576,0.05639851,1565.7,1565.5,18.43426586]
[1673948311762,0.05639851,1565.7,1565.6,7.70156856]
[1673948312123,0.05639851,1565.7,1565.6,26.13995232]
[1673948312446,0.05639851,1565.8,1565.7,0.04573779]
[1673948312609,0.05639851,1565.8,1565.7,22.2310257]
[1673948312962,0.05639851,1565.8,1565.7,11.57421101]
[1673948313115,0.05639851,1565.8,1565.7,8.45168228]
[1673948313328,0.05639851,1565.8,1565.7,10.41567596]
[1673948313539,0.05639851,1565.8,1565.7,8.82873147]
[1673948313746,0.05639851,1565.8,1565.7,8.83073147]
[1673948315450,0.42689516,1565.8,1565.7,8.83073147]
[1673948316491,0.42689516,1565.8,1565.7,7.99773147]
[1673948316733,0.42689516,1565.8,1565.7,6.03373779]
[1673948318828,0.42689516,1565.8,1565.7,4.56873779]
[1673948319037,0.42689516,1565.8,1565.7,4.50273779]
[1673948320620,0.42689516,1565.8,1565.7,0.04573779]
[1673948321385,7.04340516,1565.8,1565.7,0.04573779]
[1673948321685,9.09758968,1565.8,1565.7,0.04573779]
[1673948322801,9.57678968,1565.8,1565.7,0.04573779]
[1673948325252,19.07992375,1565.8,1565.7,0.04573779]
[1673948333416,20.02893258,1565.8,1565.7,0.04573779]
[1673948334312,20.02893258,1565.8,1565.7,0.04268764]
[1673948335326,19.07992375,1565.8,1565.7,0.04268764]
[1673948335573,19.07992375,1565.8,1565.4,3.0]
[1673948335758,0.23,1565.7,1565.4,3.0]
[1673948336481,0.36759615,1565.6,1565.4,3.0]
[1673948337893,3.34662407,1565.5,1565.3,0.066]
[1673948338209,16.70686648,1565.4,1565.1,1.463]
[1673948338376,0.23,1565.3,1565.1,1.463]
[1673948339619,0.36527756,1565.2,1565.1,1.463]
[1673948339823,0.36527756,1565.2,1565.0,4.531]
[1673948340034,0.36527756,1565.2,1565.0,4.465]
[1673948340247,0.36727756,1565.2,1565.0,4.465]
[1673948340510,0.36527756,1565.2,1565.0,4.465]
[1673948346081,0.36527756,1565.2,1565.0,6.63667474]
[1673948346292,0.36527756,1565.2,1565.0,19.48216474]
[1673948346925,0.36527756,1565.2,1565.1,1.457]
[1673948347523,9.95515899,1565.5,1565.1,1.457]
[1673948347729,0.23,1565.4,1565.1,1.457]
[1673948348725,0.35753268,1565.3,1565.1,1.457]
[1673948348957,0.35753268,1565.3,1565.1,3.40437247]
[1673948352844,0.35953268,1565.3,1565.1,3.40437247]
[1673948352987,0.35753268,1565.3,1565.1,3.40437247]
[1673948355367,0.35753268,1565.3,1565.1,9.79369247]
[1673948355551,0.3570302,1565.5,1565.1,9.85969247]
[1673948356310,0.3570302,1565.5,1565.1,16.24905247]
[1673948356462,0.3570302,1565.5,1565.2,1.62490525]
[1673948357756,1.30603903,1565.5,1565.1,16.24905247]
[1673948358177,0.3570302,1565.5,1565.1,16.24905247]
[1673948358346,1.30603903,1565.5,1565.1,16.24905247]
[1673948358560,1.30603903,1565.5,1565.1,3.47037247]
[1673948358826,0.6099039,1565.4,1565.1,1.457]
[1673948359195,0.1306039,1565.4,1565.1,1.457]
[1673948359408,8.23915903,1565.5,1565.1,1.457]
[1673948359668,0.35744389,1565.3,1565.1,1.457]
[1673948360606,16.27818469,1565.5,1565.1,1.457]
[1673948361310,2.07629427,1565.5,1565.1,1.457]
[1673948361518,1.78533903,1565.5,1565.1,1.457]
[1673948362362,1.78533903,1565.5,1565.1,7.84633]
[1673948362577,1.30603903,1565.5,1565.1,10.59123488]
[1673948364359,0.3570302,1565.5,1565.2,3.04203058]
[1673948364692,0.3570302,1565.5,1565.2,7.84595]
[1673948364873,1.30603903,1565.5,1565.2,7.91195]
[1673948366085,0.3570302,1565.5,1565.3,3.04498597]
[1673948366235,0.3570302,1565.5,1565.3,2.50548353]
[1673948368403,0.3570302,1565.5,1565.3,1.46]
[1673948371524,0.3590302,1565.5,1565.3,1.46]
[1673948371788,1.30603903,1565.5,1565.3,1.46]
[1673948373767,1.30603903,1565.5,1565.2,3.066]
[1673948373768,9.11988945,1565.5,1565.2,4.52]
[1673948373905,9.41084469,1565.5,1565.2,4.454]
[1673948374469,13.60669275,1565.5,1565.2,4.454]
[1673948375951,0.94900883,1565.4,1565.2,4.454]
[1673948376164,12.65768392,1565.5,1565.2,4.454]
[1673948376165,9.41084469,1565.5,1565.2,4.454]
[1673948376487,0.35620565,1565.3,1565.2,4.454]
[1673948376700,0.35620565,1565.3,1565.2,6.03908649]
[1673948377005,0.35620565,1565.3,1565.2,6.10508649]
[1673948377618,0.35620565,1565.3,1565.2,3.10508649]
[1673948377807,0.35620565,1565.3,1565.2,3.03908649]
[1673948379848,0.35620565,1565.3,1565.2,1.58508649]
[1673948383817,0.35820565,1565.3,1565.2,1.58508649]
[1673948383993,0.35620565,1565.3,1565.2,1.58508649]
[1673948384203,1.30521448,1565.3,1565.1,9.6931]
[1673948384454,1.30521448,1565.3,1565.1,1.531]
[1673948384626,1.30521448,1565.3,1565.1,4.465]
[1673948384835,1.30721448,1565.3,1565.1,4.465]
[1673948385046,1.30521448,1565.3,1565.1,4.465]
[1673948385844,0.35620565,1565.3,1565.1,4.465]
[1673948386010,1.30521448,1565.3,1565.1,4.465]
[1673948386220,0.35620565,1565.3,1565.2,1.58514281]
[1673948387841,1.30521448,1565.3,1565.1,4.531]
[1673948388005,1.30521448,1565.3,1565.1,4.465]
[1673948388419,1.30521448,1565.3,1565.1,6.01042648]
[1673948388420,0.35620565,1565.3,1565.1,6.01042648]
[1673948388667,0.35620565,1565.3,1565.2,4.0049573]
[1673948388939,0.35328346,1565.3,1565.2,21.21871325]
[1673948389211,0.35328346,1565.3,1565.2,19.8488573]
[1673948389581,1.29632981,1565.5,1565.2,19.8488573]
[1673948389798,1.29632981,1565.5,1565.3,5.02294368]
[1673948390137,1.29632981,1565.5,1565.3,9.89242573]
[1673948391149,1.29832981,1565.5,1565.3,9.89042573]
[1673948391358,0.34732098,1565.5,1565.3,9.89242573]
[1673948392571,0.34732098,1565.5,1565.4,1.58492191]
[1673948392725,0.29732098,1565.5,1565.4,2.82814661]
[1673948393305,0.29732098,1565.5,1565.4,1.2432247]
[1673948397243,0.29732098,1565.5,1565.3,3.50388573]
[1673948397561,0.29732098,1565.5,1565.3,3.43788573]
[1673948398339,0.29732098,1565.5,1565.4,1.58490739]
[1673948399182,0.29732098,1565.5,1565.4,19.76808674]
[1673948399391,0.29732098,1565.5,1565.4,24.41718268]
[1673948399657,0.29732098,1565.5,1565.4,31.02550115]
[1673948400022,0.29732098,1565.5,1565.4,32.4613571]
[1673948400238,0.29732098,1565.5,1565.4,31.02550115]
[1673948400610,1.32023368,1565.8,1565.4,31.02550115]
[1673948400760,1.32023368,1565.8,1565.7,1.46]
[1673948402382,1.32023368,1565.8,1565.7,2.551332]
[1673948405440,0.37122485,1565.8,1565.7,2.551332]
[1673948408620,0.37122485,1565.8,1565.7,1.07781113]
[1673948411652,0.37122485,1565.8,1565.7,7.46472113]
[1673948411863,0.37122485,1565.8,1565.7,7.53072113]
[1673948414291,0.37122485,1565.8,1565.7,14.91763113]
[1673948414511,0.37122485,1565.8,1565.7,17.91763113]
[1673948414718,0.37122485,1565.8,1565.7,20.64809924]
[1673948414923,0.37122485,1565.8,1565.7,19.64809924]
[1673948416512,0.37122485,1565.8,1565.7,6.87427924]
[1673948416723,0.37122485,1565.8,1565.7,4.14381113]
[1673948416914,0.60122485,1565.8,1565.7,3.0]
[1673948417126,0.60122485,1565.8,1565.5,0.066]
[1673948417381,0.60122485,1565.8,1565.4,6.45406]
[1673948417533,2.04012922,1565.8,1565.4,6.45406]
[1673948417748,2.51932922,1565.8,1565.4,6.45406]
[1673948418203,2.04012922,1565.8,1565.4,6.45406]
[1673948418607,2.04012922,1565.8,1565.5,3.0]
[1673948419795,2.04212922,1565.8,1565.5,3.0]
[1673948419952,2.04012922,1565.8,1565.5,3.0]
[1673948420481,4.49964582,1565.7,1565.4,0.066]
[1673948420695,9.50394407,1565.6,1565.1,38.76334122]
[1673948420903,0.23,1565.5,1565.2,1.58497663]
[1673948421549,0.31317593,1565.4,1565.2,1.58497663]
[1673948422127,0.31317593,1565.4,1565.2,4.58497663]
[1673948422270,0.31317593,1565.4,1565.2,3.0]
[1673948425220,0.31317593,1565.4,1565.1,2.20965745]
[1673948425481,0.23,1565.3,1565.1,3.0]
[1673948426483,0.31190769,1565.2,1565.1,3.0]
[1673948429041,0.31190769,1565.2,1565.1,4.58510268]
[1673948429213,0.31190769,1565.2,1565.1,3.0]
[1673948429670,0.31190769,1565.2,1565.1,4.58509977]
[1673948431735,0.31190769,1565.2,1565.1,3.0]
[1673948432601,0.83444549,1565.2,1565.1,3.0]
[1673948433038,0.83162059,1565.2,1565.1,3.0]
[1673948433251,0.83162059,1565.2,1565.1,5.90785874]
[1673948433472,0.83162059,1565.2,1565.1,5.97385874]
[1673948434687,0.83162059,1565.2,1565.1,3.066]
[1673948434897,0.83162059,1565.2,1565.1,3.0]
[1673948437422,0.83162059,1565.2,1565.0,9.9833]
[1673948437847,0.83162059,1565.2,1565.0,0.066]
[1673948438049,0.83162059,1565.2,1565.0,3.0]
[1673948438792,0.98572265,1565.2,1565.0,3.0]
[1673948439002,1.456,1565.1,1564.9,0.20334744]
[1673948439206,3.11662407,1565.0,1564.9,0.13734744]
[1673948439417,9.73639407,1565.0,1564.9,0.13734744]
[1673948439678,10.73910948,1565.0,1564.9,0.13734744]
[1673948440048,4.34933948,1565.0,1564.9,0.13734744]
[1673948440257,4.28333948,1565.0,1564.9,0.13734744]
[1673948440734,3.07653579,1565.0,1564.9,0.13734744]
[1673948443152,4.07653579,1565.0,1564.9,0.13734744]
[1673948443514,10.46630579,1565.0,1564.9,0.13734744]
[1673948443723,10.53230579,1565.0,1564.9,0.13734744]
[1673948444354,9.53230579,1565.0,1564.9,0.13734744]
[1673948444567,14.06938237,1565.0,1564.9,0.13734744]
[1673948445043,20.45915237,1565.0,1564.9,0.13734744]
[1673948445196,20.93865237,1565.0,1564.9,0.13734744]
[1673948449769,19.47065237,1565.0,1564.9,0.13734744]
[1673948450095,21.58499155,1565.0,1564.9,0.13734744]
[1673948450255,20.93865237,1565.0,1564.9,0.13734744]
[1673948453392,13.08088237,1565.0,1564.9,0.13734744]
[1673948454020,12.60138237,1565.0,1564.9,0.13734744]
[1673948459180,12.99300644,1565.0,1564.9,0.13734744]
[1673948459638,13.28788783,1565.0,1564.9,0.13734744]
[1673948459804,13.76738783,1565.0,1564.9,0.13734744]
[1673948460166,19.67765783,1565.0,1564.9,0.13734744]
[1673948461375,19.90765783,1565.0,1564.9,0.13734744]
[1673948463297,4.01149376,1565.0,1564.9,0.13734744]
[1673948463618,0.87641718,1565.0,1564.9,0.13734744]
[1673948464053,7.26618718,1565.0,1564.9,0.13734744]
[1673948464389,7.33218718,1565.0,1564.9,0.13734744]
[1673948465086,10.44881125,1565.0,1564.9,0.13734744]
[1673948465315,7.81168718,1565.0,1564.9,0.13734744]
[1673948465529,10.26268978,1565.0,1564.9,0.13734744]
[1673948465738,13.37931385,1565.0,1564.9,0.13734744]
[1673948465929,12.89981385,1565.0,1564.9,0.13734744]
[1673948466353,0.94241718,1565.0,1564.9,0.13734744]
[1673948466576,0.87641718,1565.0,1564.9,0.13734744]
[1673948469459,0.64641718,1565.0,1564.9,0.13734744]
[1673948469801,0.64641718,1565.0,1564.9,14.50296999]
[1673948470052,0.64641718,1565.0,1564.9,16.03696999]
[1673948470273,0.64641718,1565.0,1564.9,20.37525402]
[1673948470486,0.64641718,1565.0,1564.9,15.08241191]
[1673948470702,0.77285444,1565.2,1564.9,9.97544025]
[1673948470851,0.77285444,1565.2,1564.9,6.59352744]
[1673948471316,0.77285444,1565.2,1564.9,0.20334744]
[1673948471508,0.77285444,1565.2,1564.9,0.13734744]
[1673948473530,1.72186327,1565.2,1564.9,0.13734744]
[1673948475063,4.83848734,1565.2,1564.9,0.13734744]
[1673948475274,0.23,1565.1,1564.9,0.13734744]
[1673948475600,1.78786327,1565.2,1564.9,0.37770452]
[1673948475806,2.20126327,1565.2,1564.9,0.37770452]
[1673948476042,1.72186327,1565.2,1564.9,0.37770452]
[1673948476427,1.72186327,1565.2,1564.9,13.15805452]
[1673948476795,1.72186327,1565.2,1565.0,1.31580545]
[1673948478258,3.14797369,1565.2,1564.9,0.44370452]
[1673948478581,0.94900883,1565.1,1564.9,0.13734744]
[1673948478765,1.65840883,1565.1,1564.9,0.13734744]
[1673948478984,2.17900883,1565.1,1564.9,0.13734744]
[1673948479161,5.72174332,1565.1,1564.9,0.13734744]
[1673948479373,4.63780723,1565.0,1564.9,0.13734744]
[1673948479627,5.28342342,1565.0,1564.9,0.13734744]
[1673948479841,5.57942342,1565.0,1564.9,0.13734744]
[1673948480210,11.96919342,1565.0,1564.9,0.13734744]
[1673948481780,13.39530384,1565.0,1564.9,0.13734744]
[1673948481993,20.29406501,1565.0,1564.9,0.13734744]
[1673948482246,21.41990419,1565.0,1564.9,0.13734744]
[1673948482496,21.41990419,1565.0,1564.9,0.13519556]
[1673948482497,14.52434558,1565.0,1564.9,0.13519556]
[1673948482617,13.8780064,1565.0,1564.9,0.13519556]
[1673948482834,6.37254392,1565.0,1564.9,0.13519556]
[1673948483148,12.76231392,1565.0,1564.9,0.13519556]
[1673948483364,19.31556501,1565.0,1564.9,0.13519556]
[1673948483626,19.62598295,1565.0,1564.9,0.13519556]
[1673948486061,20.57789956,1565.0,1564.9,0.13519556]
[1673948487808,19.15178914,1565.0,1564.9,0.13519556]
[1673948488383,0.71161619,1565.0,1564.9,0.13519556]
[1673948488700,0.64561619,1565.0,1564.9,0.13519556]
[1673948490837,1.35511619,1565.0,1564.9,0.13519556]
[1673948491048,0.87561619,1565.0,1564.9,0.13519556]
[1673948491737,0.64561619,1565.0,1564.9,0.13519556]
[1673948494472,5.15185015,1565.0,1564.9,0.13519556]
[1673948494681,5.21785015,1565.0,1564.9,0.13519556]
[1673948494837,17.99739015,1565.0,1564.9,0.13519556]
[1673948499675,11.60762015,1565.0,1564.9,0.13519556]
[1673948502266,12.08712015,1565.0,1564.9,0.13519556]
[1673948502622,13.51323057,1565.0,1564.9,0.13519556]
[1673948503553,19.42998944,1565.0,1564.9,0.13519556]
[1673948503913,19.42998944,1565.0,1564.9,0.13247577]
[1673948504510,20.85678588,1565.0,1564.9,0.13247577]
[1673948505188,22.31278588,1565.0,1564.9,0.13247577]
[1673948505382,22.66717587,1565.0,1564.9,0.13247577]
[1673948505593,20.76215997,1565.0,1564.9,0.13247577]
[1673948505804,26.61011645,1565.0,1564.9,0.13247577]
[1673948506281,21.24037943,1565.0,1564.9,0.13247577]
[1673948506600,21.34341751,1565.0,1564.9,0.13247577]
[1673948506766,19.91691596,1565.0,1564.9,0.13247577]
[1673948506986,12.33937079,1565.0,1564.9,0.13247577]
[1673948507330,5.26635898,1565.0,1564.9,0.13247577]
[1673948507503,5.39146899,1565.0,1564.9,0.13247577]
[1673948508427,1.79534492,1565.0,1564.9,0.13247577]
[1673948508640,0.77815272,1565.0,1564.9,0.13247577]
[1673948509214,0.77815272,1565.0,1564.9,1.59847577]
[1673948509428,0.77815272,1565.0,1564.9,1.39230644]
[1673948509696,0.77815272,1565.0,1564.9,0.13247577]
[1673948510059,1.72934492,1565.0,1564.9,0.13247577]
[1673948510740,1.95934492,1565.0,1564.9,0.13247577]
[1673948510951,8.34911492,1565.0,1564.9,0.13247577]
[1673948511165,8.41511492,1565.0,1564.9,0.13247577]
[1673948511316,11.75551681,1565.0,1564.9,0.13247577]
[1673948512382,10.80432461,1565.0,1564.9,0.13247577]
[1673948513065,11.75585876,1565.0,1564.9,0.13247577]
[1673948513436,13.92094868,1565.0,1564.9,0.13247577]
[1673948514203,14.40044868,1565.0,1564.9,0.13247577]
[1673948514621,13.92094868,1565.0,1564.9,0.13247577]
[1673948515059,27.61264677,1565.0,1564.9,0.13247577]
[1673948515396,28.44653676,1565.0,1564.9,0.13247577]
[1673948515566,29.09287594,1565.0,1564.9,0.13247577]
[1673948515777,31.47406956,1565.0,1564.9,0.13247577]
[1673948516102,29.09287594,1565.0,1564.9,0.13247577]
[1673948516346,31.47406956,1565.0,1564.9,0.13247577]
[1673948517709,29.09287594,1565.0,1564.9,0.13247577]
[1673948518935,31.4727888,1565.0,1564.9,0.13247577]
[1673948519790,30.0187888,1565.0,1564.9,0.13247577]
[1673948520213,27.63751683,1565.0,1564.9,0.13247577]
[1673948520377,21.62160308,1565.0,1564.9,0.13247577]
[1673948520583,26.99122069,1565.0,1564.9,0.13247577]
[1673948522158,21.62160308,1565.0,1564.9,0.13247577]
[1673948523833,22.56975452,1565.0,1564.9,0.13247577]
[1673948524412,22.5696939,1565.0,1564.9,0.13247577]
[1673948524720,20.66595876,1565.0,1564.9,0.13247577]
[1673948525370,22.5696939,1565.0,1564.9,0.13247577]
[1673948525583,30.48957898,1565.0,1564.9,0.09267515]
[1673948525800,29.09691816,1565.0,1564.9,0.09267515]
[1673948525958,29.09428357,1565.0,1564.9,0.09267515]
[1673948526379,29.09344142,1565.0,1564.9,0.09267515]
[1673948526711,26.71572454,1565.0,1564.9,0.09267515]
[1673948526929,35.66232454,1565.0,1564.9,0.09267515]
[1673948527785,38.03970674,1565.0,1564.9,0.09267515]
[1673948529980,33.07260674,1565.0,1564.9,0.09267515]
[1673948530368,27.19522454,1565.0,1564.9,0.09267515]
[1673948530571,38.12753928,1565.0,1564.9,0.09267515]
[1673948531432,35.74992454,1565.0,1564.9,0.09267515]
[1673948531644,38.12619744,1565.0,1564.9,0.09267515]
[1673948531876,35.74992454,1565.0,1564.9,0.09267515]
[1673948532602,39.24992454,1565.0,1564.9,0.09267515]
[1673948533359,38.61536566,1565.0,1564.9,0.09267515]
[1673948533683,38.12639966,1565.0,1564.9,0.09267515]
[1673948533826,37.64689966,1565.0,1564.9,0.09267515]
[1673948537044,37.41689966,1565.0,1564.9,0.09267515]
[1673948537203,37.21126284,1565.0,1564.9,0.09267515]
[1673948537670,35.30956048,1565.0,1564.9,0.09267515]
[1673948538275,37.21137084,1565.0,1564.9,0.09267515]
[1673948538855,37.44137084,1565.0,1564.9,0.09267515]
[1673948539316,35.53956048,1565.0,1564.9,0.09267515]
[1673948540210,35.06585621,1565.0,1564.9,0.09267515]
[1673948542460,31.12326363,1565.0,1564.9,0.09267515]
[1673948542669,27.30683162,1565.0,1564.9,0.09267515]
[1673948543498,18.75213162,1565.0,1564.9,0.09267515]
[1673948543701,20.65490247,1565.0,1564.9,0.09267515]
[1673948544457,18.75213162,1565.0,1564.9,0.09267515]
[1673948544891,12.36236162,1565.0,1564.9,0.09267515]
[1673948545041,12.00797163,1565.0,1564.9,0.09267515]
[1673948545814,12.95921248,1565.0,1564.9,0.09267515]
[1673948546235,12.00797163,1565.0,1564.9,0.09267515]
[1673948546668,12.95924565,1565.0,1564.9,0.09267515]
[1673948546894,3.22285158,1565.0,1564.9,0.09267515]
[1673948547084,0.77815272,1565.0,1564.9,1.72588075]
[1673948548752,0.78015272,1565.0,1564.9,1.72588075]
[1673948548960,0.77815272,1565.0,1564.9,1.72588075]
[1673948552882,0.77815272,1565.0,1564.9,8.11606075]
[1673948553219,0.77815272,1565.0,1564.9,8.18206075]
[1673948553849,0.77815272,1565.0,1564.9,1.79188075]
[1673948554001,0.77815272,1565.0,1564.9,1.72588075]
[1673948563481,0.77815272,1565.0,1564.9,1.55567515]
[1673948564571,3.89477679,1565.0,1564.9,0.09267515]
[1673948564880,19.76251565,1565.0,1564.9,0.08867572]
[1673948565071,19.82851565,1565.0,1564.9,0.08867572]
[1673948565496,19.82771562,1565.0,1564.9,0.08867572]
[1673948565703,21.75389219,1565.0,1564.9,0.08867572]
[1673948565916,24.30300222,1565.0,1564.9,0.08867572]
[1673948567191,22.40023137,1565.0,1564.9,0.08867572]
[1673948567734,24.30300222,1565.0,1564.9,0.08867572]
[1673948570000,9.62069137,1565.0,1564.9,0.08867572]
[1673948570212,16.01046137,1565.0,1564.9,0.08867572]